[Event "Live Chess"]
[Site "Chess.com"]
[Date "2024.06.02"]
[Round "-"]
[White "matt1979"]
[Black "AlanBstard10"]
[Result "1-0"]
[WhiteElo "1404"]
[BlackElo "1223"]
[TimeControl "300"]
[EndTime "8:30:58 PDT"]
[Termination "matt1979 won by resignation"]

1. d4 {[%clk 0:04:57.1]} 1... Nf6 {[%clk 0:04:57.6]} 2. Nc3 {[%clk 0:04:55.7]}
2... d5 {[%clk 0:04:54.4]} 3. Bf4 {[%clk 0:04:53.9]} 3... c5 {[%clk 0:04:51.6]}
4. e3 {[%clk 0:04:51.3]} 4... cxd4 {[%clk 0:04:47.9]} 5. exd4 {[%clk 0:04:40.5]}
5... e6 {[%clk 0:04:46.2]} 6. Nb5 {[%clk 0:04:34.3]} 6... Na6 {[%clk 0:04:43.2]}
7. c3 {[%clk 0:04:30.5]} 7... Bd7 {[%clk 0:04:39.5]} 8. a4 {[%clk 0:04:23.9]}
8... Bxb5 {[%clk 0:04:33.5]} 9. Bxb5+ {[%clk 0:04:22.9]} 9... Nd7 {[%clk
0:04:32]} 10. Nf3 {[%clk 0:04:12.3]} 10... Nc7 {[%clk 0:04:28]} 11. Bxd7+ {[%clk
0:04:08.7]} 11... Qxd7 {[%clk 0:04:26.6]} 12. Ne5 {[%clk 0:04:06.6]} 12... Qe7
{[%clk 0:04:22.7]} 13. Qb3 {[%clk 0:03:58.5]} 13... b6 {[%clk 0:04:14]} 14. Nc6
{[%clk 0:03:49.7]} 14... Qh4 {[%clk 0:04:07.4]} 15. Bg3 {[%clk 0:03:38.7]} 15...
Qe4+ {[%clk 0:04:03.5]} 16. Kf1 {[%clk 0:03:28.1]} 16... Qd3+ {[%clk 0:03:32.6]}
17. Kg1 {[%clk 0:03:22.8]} 17... Rc8 {[%clk 0:03:11.8]} 18. Nxa7 {[%clk
0:03:19.1]} 18... Ra8 {[%clk 0:02:50.5]} 19. Qxb6 {[%clk 0:03:15.2]} 19... Rxa7
{[%clk 0:02:37.2]} 20. Qxa7 {[%clk 0:03:11.1]} 20... Qc4 {[%clk 0:02:23.9]} 21.
Qxc7 {[%clk 0:03:07.9]} 21... Qxc7 {[%clk 0:02:21.9]} 22. Bxc7 {[%clk
0:03:06.9]} 22... Kd7 {[%clk 0:02:18.7]} 23. Bb6 {[%clk 0:03:03.1]} 23... Bd6
{[%clk 0:02:16.2]} 24. a5 {[%clk 0:02:59.2]} 24... Rc8 {[%clk 0:02:08.6]} 25. g3
{[%clk 0:02:53]} 25... Bc7 {[%clk 0:02:07]} 26. Bxc7 {[%clk 0:02:51.5]} 26...
Rxc7 {[%clk 0:02:06]} 27. Kg2 {[%clk 0:02:48.9]} 27... Rb7 {[%clk 0:01:55.5]}
28. b4 {[%clk 0:02:46.9]} 28... Kc6 {[%clk 0:01:53.3]} 29. Ra3 {[%clk
0:02:44.2]} 29... Kb5 {[%clk 0:01:52.1]} 30. a6 {[%clk 0:02:40.8]} 30... Ra7
{[%clk 0:01:50.7]} 31. Rha1 {[%clk 0:02:35.5]} 31... Kc4 {[%clk 0:01:48.1]} 32.
b5 {[%clk 0:02:32.6]} 32... Kd3 {[%clk 0:01:46.3]} 33. b6 {[%clk 0:02:29.8]}
33... Rd7 {[%clk 0:01:43.8]} 34. a7 {[%clk 0:02:24.6]} 1-0

[Event "Live Chess"]
[Site "Chess.com"]
[Date "2024.06.02"]
[Round "-"]
[White "viktor_forever1994"]
[Black "missedJariChance"]
[Result "0-1"]
[WhiteElo "1376"]
[BlackElo "1365"]
[TimeControl "300"]
[EndTime "8:30:59 PDT"]
[Termination "missedJariChance won by checkmate"]

1. e4 {[%clk 0:04:57.9]} 1... c5 {[%clk 0:04:57.5]} 2. Nf3 {[%clk 0:04:57.1]}
2... e6 {[%clk 0:04:51.9]} 3. d4 {[%clk 0:04:57]} 3... cxd4 {[%clk 0:04:48.2]}
4. Nxd4 {[%clk 0:04:56.9]} 4... Nc6 {[%clk 0:04:46.2]} 5. Nb3 {[%clk 0:04:55.5]}
5... a6 {[%clk 0:04:39.6]} 6. Nc3 {[%clk 0:04:55.4]} 6... Qc7 {[%clk 0:04:38.4]}
7. Be3 {[%clk 0:04:49.3]} 7... Nf6 {[%clk 0:04:36.3]} 8. Bd3 {[%clk 0:04:48.1]}
8... Bb4 {[%clk 0:04:34.1]} 9. O-O {[%clk 0:04:45.9]} 9... O-O {[%clk
0:04:31.8]} 10. a3 {[%clk 0:04:43.7]} 10... Bd6 {[%clk 0:04:29]} 11. Re1 {[%clk
0:04:38.5]} 11... Bxh2+ {[%clk 0:04:22.9]} 12. Kh1 {[%clk 0:04:34.7]} 12... Be5
{[%clk 0:04:19.3]} 13. Qd2 {[%clk 0:04:17.9]} 13... Ng4 {[%clk 0:04:11]} 14. f4
{[%clk 0:04:10.7]} 14... Nxe3 {[%clk 0:04:04.6]} 15. fxe5 {[%clk 0:03:58.6]}
15... Qxe5 {[%clk 0:03:22]} 16. Qxe3 {[%clk 0:03:56.9]} 16... Qh5+ {[%clk
0:03:20.2]} 17. Kg1 {[%clk 0:03:33.2]} 17... Ne5 {[%clk 0:03:18.2]} 18. Rf1
{[%clk 0:03:17]} 18... Ng4 {[%clk 0:03:13.4]} 19. Qf3 {[%clk 0:03:10.6]} 19...
Qh2# {[%clk 0:03:07.4]} 0-1

[Event "Live Chess"]
[Site "Chess.com"]
[Date "2024.06.02"]
[Round "-"]
[White "DylanMeyer1"]
[Black "Ginger_GM"]
[Result "0-1"]
[WhiteElo "1702"]
[BlackElo "2665"]
[TimeControl "300"]
[EndTime "8:31:03 PDT"]
[Termination "Ginger_GM won by resignation"]

1. c4 {[%clk 0:04:58.8]} 1... f5 {[%clk 0:04:58.7]} 2. Nc3 {[%clk 0:04:57]} 2...
Nf6 {[%clk 0:04:57.9]} 3. g3 {[%clk 0:04:56.5]} 3... d6 {[%clk 0:04:57.1]} 4.
Bg2 {[%clk 0:04:56.1]} 4... e5 {[%clk 0:04:56.5]} 5. e3 {[%clk 0:04:55.5]} 5...
Be7 {[%clk 0:04:56]} 6. b3 {[%clk 0:04:54.2]} 6... O-O {[%clk 0:04:55.3]} 7. Bb2
{[%clk 0:04:53.7]} 7... c6 {[%clk 0:04:54.6]} 8. Nge2 {[%clk 0:04:52.9]} 8...
Be6 {[%clk 0:04:53.2]} 9. O-O {[%clk 0:04:51.7]} 9... d5 {[%clk 0:04:52.2]} 10.
d3 {[%clk 0:04:49.1]} 10... Nbd7 {[%clk 0:04:49.7]} 11. a3 {[%clk 0:04:40.5]}
11... Qe8 {[%clk 0:04:45.2]} 12. h3 {[%clk 0:04:36.8]} 12... Qh5 {[%clk
0:04:43.5]} 13. Kh1 {[%clk 0:04:26.3]} 13... f4 {[%clk 0:04:40]} 14. exf4 {[%clk
0:04:20]} 14... Bxh3 {[%clk 0:04:38.5]} 15. Ng1 {[%clk 0:04:12]} 15... Bg4+
{[%clk 0:04:36.5]} 0-1

[Event "Live Chess"]
[Site "Chess.com"]
[Date "2024.06.02"]
[Round "-"]
[White "Plimsol"]
[Black "Trendle"]
[Result "1-0"]
[WhiteElo "2393"]
[BlackElo "2598"]
[TimeControl "300"]
[EndTime "8:31:05 PDT"]
[Termination "Plimsol won by resignation"]

1. e4 {[%clk 0:04:58]} 1... e6 {[%clk 0:04:57.9]} 2. d4 {[%clk 0:04:56.7]} 2...
d5 {[%clk 0:04:57.6]} 3. Nc3 {[%clk 0:04:56.2]} 3... Bb4 {[%clk 0:04:51.6]} 4.
e5 {[%clk 0:04:54.7]} 4... c5 {[%clk 0:04:48.7]} 5. a3 {[%clk 0:04:53.9]} 5...
Bxc3+ {[%clk 0:04:48.1]} 6. bxc3 {[%clk 0:04:53.8]} 6... Ne7 {[%clk 0:04:47.4]}
7. Nf3 {[%clk 0:04:53.1]} 7... Qa5 {[%clk 0:04:44.4]} 8. Bd2 {[%clk 0:04:50.6]}
8... Bd7 {[%clk 0:04:41.1]} 9. a4 {[%clk 0:04:47.8]} 9... Nbc6 {[%clk
0:04:39.8]} 10. Rb1 {[%clk 0:04:41]} 10... c4 {[%clk 0:04:33.1]} 11. Rxb7 {[%clk
0:04:35.1]} 11... Qxa4 {[%clk 0:04:30.5]} 12. Be2 {[%clk 0:04:31.5]} 12... Qa6
{[%clk 0:04:27.4]} 13. Rb1 {[%clk 0:04:29.9]} 13... O-O {[%clk 0:04:21.9]} 14.
O-O {[%clk 0:04:29]} 14... Rab8 {[%clk 0:04:15.7]} 15. Ra1 {[%clk 0:04:28.1]}
15... Qb6 {[%clk 0:04:13.6]} 16. Qc1 {[%clk 0:04:26.3]} 16... f6 {[%clk
0:04:04.4]} 17. Qa3 {[%clk 0:04:19.6]} 17... fxe5 {[%clk 0:03:58.5]} 18. Nxe5
{[%clk 0:04:18.5]} 18... Nxe5 {[%clk 0:03:55.7]} 19. Qxe7 {[%clk 0:04:17]} 19...
Rf7 {[%clk 0:03:44.5]} 20. Qa3 {[%clk 0:04:15.1]} 20... Ng6 {[%clk 0:03:38.8]}
21. Qxa7 {[%clk 0:04:09.8]} 21... Qxa7 {[%clk 0:03:24.3]} 22. Rxa7 {[%clk
0:04:08.6]} 22... Rb2 {[%clk 0:03:24]} 23. Bd1 {[%clk 0:03:54.9]} 23... Be8
{[%clk 0:03:13.4]} 24. Ra8 {[%clk 0:03:52.5]} 24... Rf8 {[%clk 0:03:12.4]} 25.
Bc1 {[%clk 0:03:50.7]} 25... Rb1 {[%clk 0:02:58.8]} 26. Ba3 {[%clk 0:03:48.9]}
26... Bc6 {[%clk 0:02:58.5]} 27. Ra6 {[%clk 0:03:34.5]} 27... Rc8 {[%clk
0:02:54.7]} 28. Bg4 {[%clk 0:03:33.6]} 28... Rxf1+ {[%clk 0:02:51.9]} 29. Kxf1
{[%clk 0:03:32.7]} 29... Bd7 {[%clk 0:02:44.9]} 30. Ra7 {[%clk 0:03:26.7]} 1-0

[Event "Live Chess"]
[Site "Chess.com"]
[Date "2024.06.02"]
[Round "-"]
[White "CheckThis4"]
[Black "TC2304"]
[Result "1-0"]
[WhiteElo "2679"]
[BlackElo "2322"]
[TimeControl "300"]
[EndTime "8:31:13 PDT"]
[Termination "CheckThis4 won by checkmate"]

1. d4 {[%clk 0:04:57.3]} 1... Nf6 {[%clk 0:04:58.3]} 2. Bg5 {[%clk 0:04:55.9]}
2... Ne4 {[%clk 0:04:45.4]} 3. Bf4 {[%clk 0:04:53.4]} 3... c5 {[%clk 0:04:39.9]}
4. d5 {[%clk 0:04:52.1]} 4... e6 {[%clk 0:04:23.5]} 5. f3 {[%clk 0:04:48.4]}
5... Qa5+ {[%clk 0:04:21]} 6. c3 {[%clk 0:04:44.3]} 6... Nf6 {[%clk 0:04:17.6]}
7. e4 {[%clk 0:04:43.2]} 7... exd5 {[%clk 0:04:06.8]} 8. exd5 {[%clk 0:04:42.1]}
8... Qb6 {[%clk 0:03:58.6]} 9. Na3 {[%clk 0:04:36.9]} 9... Qxb2 {[%clk
0:03:44.5]} 10. Nb5 {[%clk 0:04:30.8]} 10... Na6 {[%clk 0:03:31.8]} 11. d6
{[%clk 0:03:50]} 11... Nh5 {[%clk 0:02:39.2]} 12. Bg5 {[%clk 0:03:29.5]} 12...
f6 {[%clk 0:02:35.8]} 13. Be3 {[%clk 0:02:54.4]} 13... g5 {[%clk 0:02:19.5]} 14.
Nh3 {[%clk 0:02:38.5]} 14... Ng7 {[%clk 0:02:16.1]} 15. Bd2 {[%clk 0:02:02.8]}
15... Nf5 {[%clk 0:02:10.2]} 16. Bc4 {[%clk 0:01:25.1]} 16... Nxd6 {[%clk
0:02:04.7]} 17. Rb1 {[%clk 0:01:22.4]} 17... Qxb1 {[%clk 0:01:53.8]} 18. Qxb1
{[%clk 0:01:20.7]} 18... Nxc4 {[%clk 0:01:53.1]} 19. Qe4+ {[%clk 0:01:13.1]}
19... Ne5 {[%clk 0:01:52.1]} 20. Nxg5 {[%clk 0:01:07.5]} 20... d6 {[%clk
0:01:49.7]} 21. f4 {[%clk 0:01:04.3]} 21... fxg5 {[%clk 0:01:23.1]} 22. fxe5
{[%clk 0:01:03.4]} 22... d5 {[%clk 0:01:09.1]} 23. Qxd5 {[%clk 0:01:01.6]} 23...
Be7 {[%clk 0:01:01.1]} 24. O-O {[%clk 0:00:58.3]} 24... Rf8 {[%clk 0:01:00.5]}
25. Nd6+ {[%clk 0:00:45.9]} 25... Bxd6 {[%clk 0:00:58.8]} 26. exd6 {[%clk
0:00:45.5]} 26... Rxf1+ {[%clk 0:00:57]} 27. Kxf1 {[%clk 0:00:45.2]} 27... Kd7
{[%clk 0:00:54.1]} 28. Bxg5 {[%clk 0:00:42.7]} 28... Nb8 {[%clk 0:00:49.4]} 29.
Qf7+ {[%clk 0:00:36.6]} 29... Kxd6 {[%clk 0:00:48.6]} 30. Qf8+ {[%clk
0:00:35.6]} 30... Kd7 {[%clk 0:00:46.4]} 31. Qd8+ {[%clk 0:00:34.6]} 31... Kc6
{[%clk 0:00:44.7]} 32. Qxc8+ {[%clk 0:00:33.7]} 32... Kb6 {[%clk 0:00:43.9]} 33.
Bd8+ {[%clk 0:00:32.8]} 33... Ka6 {[%clk 0:00:43]} 34. Bc7 {[%clk 0:00:32]}
34... h5 {[%clk 0:00:37]} 35. Bxb8 {[%clk 0:00:30.9]} 35... h4 {[%clk
0:00:36.6]} 36. g3 {[%clk 0:00:29.5]} 36... hxg3 {[%clk 0:00:33.9]} 37. hxg3
{[%clk 0:00:29.4]} 37... Kb5 {[%clk 0:00:27.9]} 38. Qxb7+ {[%clk 0:00:27.2]}
38... Kc4 {[%clk 0:00:26.3]} 39. Qxa8 {[%clk 0:00:27.1]} 39... a5 {[%clk
0:00:25.8]} 40. Qe4+ {[%clk 0:00:25.4]} 40... Kb5 {[%clk 0:00:24.2]} 41. g4
{[%clk 0:00:24.6]} 41... a4 {[%clk 0:00:23.1]} 42. g5 {[%clk 0:00:23.9]} 42...
a3 {[%clk 0:00:23]} 43. g6 {[%clk 0:00:23]} 43... c4 {[%clk 0:00:22.9]} 44. g7
{[%clk 0:00:21.5]} 44... Ka5 {[%clk 0:00:22.2]} 45. g8=Q {[%clk 0:00:19.7]}
45... Kb5 {[%clk 0:00:21.9]} 46. Qge8+ {[%clk 0:00:18.6]} 46... Kb6 {[%clk
0:00:21.8]} 47. Q4c6+ {[%clk 0:00:16.9]} 47... Ka5 {[%clk 0:00:21.4]} 48. Qb5#
{[%clk 0:00:15.7]} 1-0

[Event "Live Chess"]
[Site "Chess.com"]
[Date "2024.06.02"]
[Round "-"]
[White "lyricalschemes"]
[Black "Frankie_Badacsonyi"]
[Result "1/2-1/2"]
[WhiteElo "2197"]
[BlackElo "2359"]
[TimeControl "300"]
[EndTime "8:31:14 PDT"]
[Termination "Game drawn by agreement"]

1. e4 {[%clk 0:04:58.4]} 1... c6 {[%clk 0:04:56.4]} 2. d4 {[%clk 0:04:57.1]}
2... d5 {[%clk 0:04:56]} 3. Nc3 {[%clk 0:04:56.5]} 3... dxe4 {[%clk 0:04:53.6]}
4. Nxe4 {[%clk 0:04:56.2]} 4... Nf6 {[%clk 0:04:53]} 5. Nxf6+ {[%clk 0:04:55.6]}
5... exf6 {[%clk 0:04:52.8]} 6. Nf3 {[%clk 0:04:55.1]} 6... Bd6 {[%clk
0:04:52.2]} 7. Be2 {[%clk 0:04:54.3]} 7... O-O {[%clk 0:04:51.7]} 8. O-O {[%clk
0:04:54]} 8... Bg4 {[%clk 0:04:50.4]} 9. c3 {[%clk 0:04:50]} 9... Re8 {[%clk
0:04:49]} 10. Be3 {[%clk 0:04:48.7]} 10... Nd7 {[%clk 0:04:47.5]} 11. Nh4 {[%clk
0:04:48.2]} 11... Bxe2 {[%clk 0:04:44.4]} 12. Qxe2 {[%clk 0:04:48]} 12... g6
{[%clk 0:04:39.8]} 13. Qf3 {[%clk 0:04:44.3]} 13... f5 {[%clk 0:04:35.4]} 14. g3
{[%clk 0:04:41]} 14... Be7 {[%clk 0:04:21.7]} 15. Ng2 {[%clk 0:04:38.7]} 15...
Nf6 {[%clk 0:04:21.2]} 16. Bg5 {[%clk 0:04:33.2]} 16... Ne4 {[%clk 0:04:19.1]}
17. Bxe7 {[%clk 0:04:30.9]} 17... Rxe7 {[%clk 0:04:18.5]} 18. Rfe1 {[%clk
0:04:29.3]} 18... Qb6 {[%clk 0:04:16.7]} 19. b3 {[%clk 0:04:23.8]} 19... Rae8
{[%clk 0:04:15.5]} 20. Qd3 {[%clk 0:04:18]} 20... Qa5 {[%clk 0:04:11.6]} 21. c4
{[%clk 0:04:09.7]} 21... Kg7 {[%clk 0:03:55.8]} 22. Ne3 {[%clk 0:04:03.6]} 22...
Qc3 {[%clk 0:03:40.8]} 23. Qxc3 {[%clk 0:03:52.1]} 23... Nxc3 {[%clk 0:03:40.7]}
24. a3 {[%clk 0:03:28.7]} 24... Kf8 {[%clk 0:03:33.9]} 25. Kf1 {[%clk
0:03:24.2]} 25... Ne4 {[%clk 0:03:27.9]} 26. Rad1 {[%clk 0:03:20.3]} 26... Ng5
{[%clk 0:03:06.8]} 27. h4 {[%clk 0:03:02.7]} 27... Nf3 {[%clk 0:02:55.4]} 28.
Re2 {[%clk 0:03:01.4]} 28... f4 {[%clk 0:02:54.6]} 29. gxf4 {[%clk 0:02:53.1]}
29... Nxh4 {[%clk 0:02:51.9]} 30. d5 {[%clk 0:02:46.8]} 30... cxd5 {[%clk
0:02:50.3]} 31. cxd5 {[%clk 0:02:45.3]} 31... Nf5 {[%clk 0:02:48.9]} 32. Rd3
{[%clk 0:02:29.1]} 32... Nd6 {[%clk 0:02:46]} 33. Rc2 {[%clk 0:02:11.3]} 33...
Re4 {[%clk 0:02:44.7]} 34. Nc4 {[%clk 0:02:05.6]} 34... Nf5 {[%clk 0:02:25.4]}
35. d6 {[%clk 0:01:47.9]} 35... Rd8 {[%clk 0:01:33.7]} 36. d7 {[%clk 0:01:38.6]}
36... Re7 {[%clk 0:01:32.7]} 37. Rcd2 {[%clk 0:01:36.9]} 37... b6 {[%clk
0:01:22.7]} 38. Ne5 {[%clk 0:01:34]} 38... Re6 {[%clk 0:01:21.2]} 39. Rc2 {[%clk
0:01:18.9]} 39... Ne7 {[%clk 0:01:07.4]} 40. Rc7 {[%clk 0:01:10.2]} 40... f6
{[%clk 0:01:05.6]} 41. Nc4 {[%clk 0:00:57.5]} 41... a5 {[%clk 0:01:00.2]} 42.
Rd6 {[%clk 0:00:46.9]} 42... Kf7 {[%clk 0:00:50.8]} 43. Rxb6 {[%clk 0:00:41.9]}
43... Nd5 {[%clk 0:00:47.4]} 44. Rxe6 {[%clk 0:00:35.1]} 44... Kxe6 {[%clk
0:00:47.3]} 45. Ra7 {[%clk 0:00:31.2]} 45... Rxd7 {[%clk 0:00:42.1]} 46. Ra6+
{[%clk 0:00:30.5]} 46... Kf7 {[%clk 0:00:38.3]} 47. Rxa5 {[%clk 0:00:29.5]}
47... Nxf4 {[%clk 0:00:36.8]} 48. Ke1 {[%clk 0:00:28.6]} 1/2-1/2

[Event "Live Chess"]
[Site "Chess.com"]
[Date "2024.06.02"]
[Round "-"]
[White "LaupMiths"]
[Black "TheSmoulderingMaster"]
[Result "0-1"]
[WhiteElo "1798"]
[BlackElo "1786"]
[TimeControl "300"]
[EndTime "8:31:17 PDT"]
[Termination "TheSmoulderingMaster won by checkmate"]

1. Nf3 {[%clk 0:04:54.5]} 1... d5 {[%clk 0:04:58.3]} 2. g3 {[%clk 0:04:53.7]}
2... c5 {[%clk 0:04:55.2]} 3. Bg2 {[%clk 0:04:52.1]} 3... Nc6 {[%clk 0:04:53.5]}
4. d4 {[%clk 0:04:51.2]} 4... cxd4 {[%clk 0:04:50]} 5. Nxd4 {[%clk 0:04:50.1]}
5... Nf6 {[%clk 0:04:47.6]} 6. O-O {[%clk 0:04:48.2]} 6... Bd7 {[%clk
0:04:40.5]} 7. c4 {[%clk 0:04:46.1]} 7... dxc4 {[%clk 0:04:36.6]} 8. Nc3 {[%clk
0:04:39.5]} 8... g6 {[%clk 0:04:26.5]} 9. Bf4 {[%clk 0:04:20.3]} 9... Bg7 {[%clk
0:04:18.7]} 10. Ndb5 {[%clk 0:04:15.9]} 10... O-O {[%clk 0:04:15.6]} 11. Rc1
{[%clk 0:03:51.4]} 11... a6 {[%clk 0:04:11.5]} 12. Na3 {[%clk 0:03:35.9]} 12...
b5 {[%clk 0:04:08.1]} 13. Nd5 {[%clk 0:03:28.7]} 13... Nxd5 {[%clk 0:04:01.1]}
14. Qxd5 {[%clk 0:03:28.6]} 14... Bxb2 {[%clk 0:03:59.8]} 15. Nb1 {[%clk
0:03:16.9]} 15... Bxc1 {[%clk 0:03:57.8]} 16. Rxc1 {[%clk 0:03:15.3]} 16... Nb4
{[%clk 0:03:56.7]} 17. Qd2 {[%clk 0:03:08.2]} 17... a5 {[%clk 0:03:46.6]} 18. a3
{[%clk 0:03:00.5]} 18... Nc6 {[%clk 0:03:41.7]} 19. Qb2 {[%clk 0:02:57.8]} 19...
Rb8 {[%clk 0:03:39.5]} 20. Bh6 {[%clk 0:02:56.4]} 20... e5 {[%clk 0:03:32]} 21.
Rd1 {[%clk 0:02:50.1]} 21... Re8 {[%clk 0:03:27.6]} 22. Bxc6 {[%clk 0:02:47.1]}
22... Bxc6 {[%clk 0:03:19.5]} 23. Rxd8 {[%clk 0:02:44.4]} 23... Rbxd8 {[%clk
0:03:18.6]} 24. Bg5 {[%clk 0:02:37.7]} 24... Rd1# {[%clk 0:03:15.9]} 0-1

[Event "Live Chess"]
[Site "Chess.com"]
[Date "2024.06.02"]
[Round "-"]
[White "NeilDruggan73"]
[Black "stevochess11"]
[Result "1-0"]
[WhiteElo "1729"]
[BlackElo "1699"]
[TimeControl "300"]
[EndTime "8:31:21 PDT"]
[Termination "NeilDruggan73 won by checkmate"]

1. d4 {[%clk 0:04:55.1]} 1... c5 {[%clk 0:04:57.2]} 2. d5 {[%clk 0:04:49.4]}
2... b5 {[%clk 0:04:54.6]} 3. Bg5 {[%clk 0:04:47.5]} 3... f6 {[%clk 0:04:52.9]}
4. Bh4 {[%clk 0:04:44.6]} 4... Bb7 {[%clk 0:04:49.4]} 5. e3 {[%clk 0:04:42.4]}
5... g6 {[%clk 0:04:39.9]} 6. Bxb5 {[%clk 0:04:37.6]} 6... Qa5+ {[%clk
0:04:37.2]} 7. Nc3 {[%clk 0:04:36.2]} 7... Nh6 {[%clk 0:04:25.6]} 8. e4 {[%clk
0:04:28.8]} 8... Nf7 {[%clk 0:04:20.4]} 9. f4 {[%clk 0:04:24.6]} 9... Nd6 {[%clk
0:04:19]} 10. Bd3 {[%clk 0:04:18.6]} 10... Bg7 {[%clk 0:04:12.7]} 11. Nf3 {[%clk
0:04:09.6]} 11... O-O {[%clk 0:04:04.1]} 12. O-O {[%clk 0:04:06]} 12... c4
{[%clk 0:03:58.7]} 13. Be2 {[%clk 0:03:59.3]} 13... Qb6+ {[%clk 0:03:57.3]} 14.
Bf2 {[%clk 0:03:42]} 14... Qxb2 {[%clk 0:03:55.9]} 15. Bd4 {[%clk 0:03:38.5]}
15... Na6 {[%clk 0:03:37.3]} 16. Rb1 {[%clk 0:03:36.6]} 16... Qa3 {[%clk
0:03:35.4]} 17. e5 {[%clk 0:03:35]} 17... fxe5 {[%clk 0:03:30.6]} 18. fxe5
{[%clk 0:03:33.6]} 18... Nf5 {[%clk 0:03:24.8]} 19. Rxb7 {[%clk 0:03:29]} 19...
Nxd4 {[%clk 0:03:17.1]} 20. Qxd4 {[%clk 0:03:26.7]} 20... d6 {[%clk 0:03:14.1]}
21. Rxe7 {[%clk 0:03:23.3]} 21... dxe5 {[%clk 0:03:12.9]} 22. Rxg7+ {[%clk
0:03:21.1]} 22... Kxg7 {[%clk 0:03:11.7]} 23. Qxe5+ {[%clk 0:03:16]} 23... Kg8
{[%clk 0:03:10.1]} 24. Bxc4 {[%clk 0:03:09]} 24... Rac8 {[%clk 0:03:05.4]} 25.
Bb3 {[%clk 0:03:03.3]} 25... Qc5+ {[%clk 0:02:59.8]} 26. Kh1 {[%clk 0:02:59.6]}
26... Qxc3 {[%clk 0:02:58.6]} 27. d6+ {[%clk 0:02:52.9]} 27... Rf7 {[%clk
0:02:45.9]} 28. Bxf7+ {[%clk 0:02:25.5]} 28... Kxf7 {[%clk 0:02:41.7]} 29. Ng5+
{[%clk 0:02:23.1]} 29... Kg8 {[%clk 0:02:38.8]} 30. Qxc3 {[%clk 0:01:48.3]}
30... Rxc3 {[%clk 0:02:36.5]} 31. Rd1 {[%clk 0:01:38.8]} 31... Rxc2 {[%clk
0:02:30.6]} 32. d7 {[%clk 0:01:36.4]} 32... Rxa2 {[%clk 0:02:26.3]} 33. d8=Q+
{[%clk 0:01:33.7]} 33... Kg7 {[%clk 0:02:25.5]} 34. h4 {[%clk 0:01:31.1]} 34...
Nc5 {[%clk 0:02:21.2]} 35. Qe7+ {[%clk 0:01:26.5]} 35... Kh6 {[%clk 0:02:17.7]}
36. Qxh7# {[%clk 0:01:25]} 1-0

[Event "Live Chess"]
[Site "Chess.com"]
[Date "2024.06.02"]
[Round "-"]
[White "friarnator"]
[Black "NottheBishopSacrifice"]
[Result "0-1"]
[WhiteElo "2202"]
[BlackElo "2346"]
[TimeControl "300"]
[EndTime "8:31:27 PDT"]
[Termination "NottheBishopSacrifice won on time"]

1. e4 {[%clk 0:04:57.8]} 1... c6 {[%clk 0:04:59.4]} 2. d4 {[%clk 0:04:56.5]}
2... d5 {[%clk 0:04:59.3]} 3. Nc3 {[%clk 0:04:56]} 3... dxe4 {[%clk 0:04:58.4]}
4. Nxe4 {[%clk 0:04:55.9]} 4... Nf6 {[%clk 0:04:56.6]} 5. Nxf6+ {[%clk
0:04:54.9]} 5... exf6 {[%clk 0:04:55.6]} 6. c3 {[%clk 0:04:54.8]} 6... Bd6
{[%clk 0:04:54.3]} 7. Bd3 {[%clk 0:04:54.4]} 7... O-O {[%clk 0:04:53.3]} 8. Qc2
{[%clk 0:04:50.7]} 8... Re8+ {[%clk 0:04:52.2]} 9. Ne2 {[%clk 0:04:50.1]} 9...
h5 {[%clk 0:04:51.6]} 10. O-O {[%clk 0:04:47.8]} 10... h4 {[%clk 0:04:50.8]} 11.
h3 {[%clk 0:04:47]} 11... Nd7 {[%clk 0:04:46.8]} 12. Bd2 {[%clk 0:03:51.8]}
12... Nf8 {[%clk 0:04:43.1]} 13. Rae1 {[%clk 0:03:51.4]} 13... Bd7 {[%clk
0:04:41.1]} 14. c4 {[%clk 0:03:41.9]} 14... g6 {[%clk 0:04:39.3]} 15. f4 {[%clk
0:03:36.5]} 15... f5 {[%clk 0:04:37.7]} 16. Nc3 {[%clk 0:03:18.6]} 16... Nh7
{[%clk 0:04:27.2]} 17. d5 {[%clk 0:03:07.9]} 17... c5 {[%clk 0:04:13.5]} 18.
Rxe8+ {[%clk 0:03:02.1]} 18... Qxe8 {[%clk 0:04:01.3]} 19. Nd1 {[%clk
0:02:23.9]} 19... Nf6 {[%clk 0:03:54.6]} 20. Be1 {[%clk 0:02:22.3]} 20... Ne4
{[%clk 0:03:51.4]} 21. Bxe4 {[%clk 0:02:20.5]} 21... Qxe4 {[%clk 0:03:49.4]} 22.
Qxe4 {[%clk 0:02:18.5]} 22... fxe4 {[%clk 0:03:49.3]} 23. Bxh4 {[%clk
0:02:16.3]} 23... f5 {[%clk 0:03:48.9]} 24. Bf2 {[%clk 0:02:08]} 24... Bxf4
{[%clk 0:03:46]} 25. Bxc5 {[%clk 0:02:05.1]} 25... Be5 {[%clk 0:03:45.5]} 26. b3
{[%clk 0:02:01.7]} 26... b5 {[%clk 0:03:19.2]} 27. Ne3 {[%clk 0:01:53.3]} 27...
bxc4 {[%clk 0:03:17.4]} 28. Nxc4 {[%clk 0:01:33]} 28... Bf6 {[%clk 0:03:15.3]}
29. g4 {[%clk 0:01:25.3]} 29... Rc8 {[%clk 0:03:08.8]} 30. Bxa7 {[%clk
0:01:20.7]} 30... Ra8 {[%clk 0:03:08.2]} 31. Be3 {[%clk 0:01:10.9]} 31... Rxa2
{[%clk 0:03:06.3]} 32. gxf5 {[%clk 0:01:07.9]} 32... gxf5 {[%clk 0:03:04.3]} 33.
Rf2 {[%clk 0:01:07.2]} 33... Ra1+ {[%clk 0:03:01.8]} 34. Rf1 {[%clk 0:01:05.7]}
34... Ra2 {[%clk 0:02:59.1]} 35. Rb1 {[%clk 0:01:02.8]} 35... Bb5 {[%clk
0:02:52.7]} 36. d6 {[%clk 0:00:57.1]} 36... Re2 {[%clk 0:02:50]} 37. Bc5 {[%clk
0:00:54.5]} 37... f4 {[%clk 0:02:45.7]} 38. Rd1 {[%clk 0:00:51.7]} 38... e3
{[%clk 0:02:42.9]} 39. d7 {[%clk 0:00:49.9]} 39... Bd8 {[%clk 0:02:31.9]} 40.
Ne5 {[%clk 0:00:41]} 40... Rd2 {[%clk 0:02:26.9]} 41. Re1 {[%clk 0:00:34.6]}
41... Rd5 {[%clk 0:02:23.2]} 42. Ng6 {[%clk 0:00:19.7]} 42... Rxc5 {[%clk
0:02:21.1]} 43. Nxf4 {[%clk 0:00:18.9]} 43... Re5 {[%clk 0:02:18.1]} 44. Kg2
{[%clk 0:00:16.1]} 44... Bxd7 {[%clk 0:02:17.5]} 45. Kf3 {[%clk 0:00:14.4]}
45... Bc6+ {[%clk 0:02:16.4]} 46. Ke2 {[%clk 0:00:13.9]} 46... Bg5 {[%clk
0:02:14.3]} 47. Ng6 {[%clk 0:00:09.5]} 47... Re6 {[%clk 0:02:11.7]} 48. h4
{[%clk 0:00:06.6]} 48... Bb5+ {[%clk 0:02:06.8]} 49. Kf3 {[%clk 0:00:05.7]}
49... Bc6+ {[%clk 0:02:05.3]} 50. Ke2 {[%clk 0:00:04.8]} 50... Bb5+ {[%clk
0:02:04.3]} 51. Kf3 {[%clk 0:00:03.7]} 51... Bh6 {[%clk 0:02:03.9]} 52. Rg1
{[%clk 0:00:03.1]} 52... Kh7 {[%clk 0:02:01.6]} 53. Nf4 {[%clk 0:00:01.8]} 53...
Bxf4 {[%clk 0:02:00.1]} 54. Kxf4 {[%clk 0:00:01.7]} 54... e2 {[%clk 0:01:59.6]}
55. Re1 {[%clk 0:00:01]} 55... Rd6 {[%clk 0:01:58]} 56. Kf3 {[%clk 0:00:00.9]}
56... Rd1 {[%clk 0:01:57.1]} 57. Kf2 {[%clk 0:00:00.8]} 57... Kh6 {[%clk
0:01:56.1]} 58. h5 {[%clk 0:00:00.7]} 58... Kxh5 {[%clk 0:01:55.3]} 59. b4
{[%clk 0:00:00.6]} 59... Kg5 {[%clk 0:01:54.2]} 60. Rxe2 {[%clk 0:00:00.5]}
60... Bxe2 {[%clk 0:01:52.2]} 61. Kxe2 {[%clk 0:00:00.4]} 61... Rb1 {[%clk
0:01:51.1]} 0-1